Workbook

Sheet BD
A1: PERIODO | B1: BANCO | C1: POLIGONO | D1: VOLUMEN | E1: DENCIDAD | F1: FASE | G1: CODIGO | H1: TONELADA
A2: 2020-07-01 | B2: 4216 | C2: 495 | D2: 36.36 | E2: 2.8 | F2: F1 | G2: 82.04 | H2: =D2*E2 -> 101.808
A3: 2020-07-01 | B3: 4216 | C3: 496 | D3: 10.68 | E3: 2.8 | F3: F1 | G3: 71.84 | H3: 29.904
A4: 2020-07-01 | B4: 4336 | C4: 500 | D4: 898.58 | E4: 2.8 | F4: F3 | G4: 39.24 | H4: 2516.024 | J4: La columna B.C,F,G y H
A5: 2020-07-02 | B5: 4216 | C5: 495 | D5: 1523.5 | E5: 2.8 | F5: F1 | G5: 82.04 | H5: 4265.8
A6: 2020-07-02 | B6: 4216 | C6: 496 | D6: 99 | E6: 2.8 | F6: F1 | G6: 71.84 | H6: 277.2
A7: 2020-07-02 | B7: 4216 | C7: 497 | D7: 49.39 | E7: 2.8 | F7: F1 | G7: 109.05 | H7: 138.292
A8: 2020-07-02 | B8: 4336 | C8: 500 | D8: 122.95 | E8: 2.8 | F8: F3 | G8: 39.24 | H8: 344.26
A9: 2020-07-02 | B9: 4336 | C9: 501 | D9: 126.28 | E9: 2.8 | F9: F3 | G9: 26.93 | H9: 353.584
A10: 2020-07-03 | B10: 4216 | C10: 495 | D10: 678 | E10: 2.8 | F10: F1 | G10: 82.04 | H10: 1898.4
A11: 2020-07-03 | B11: 4216 | C11: 496 | D11: 310.9339286 | E11: 2.8 | F11: F1 | G11: 71.84 | H11: 870.615
A12: 2020-07-03 | B12: 4216 | C12: 497 | D12: 13.03571429 | E12: 2.8 | F12: F1 | G12: 109.05 | H12: 36.5
A13: 2020-07-03 | B13: 4216 | C13: 499 | D13: 169.4642857 | E13: 2.8 | F13: F1 | G13: 35.13 | H13: 474.5
A14: 2020-07-03 | B14: 4216 | C14: 522 | D14: 169.4642857 | E14: 2.8 | F14: F1 | G14: 31.34 | H14: 474.5
A15: 2020-07-03 | B15: 4336 | C15: 501 | D15: 117.3214286 | E15: 2.8 | F15: F3 | G15: 26.93 | H15: 328.5
A16: 2020-07-04 | B16: 4216 | C16: 495 | D16: 415.43 | E16: 2.8 | F16: F1 | G16: 82.04 | H16: 1163.204
A17: 2020-07-04 | B17: 4216 | C17: 496 | D17: 437.32 | E17: 2.8 | F17: F1 | G17: 71.84 | H17: 1224.496
A18: 2020-07-04 | B18: 4216 | C18: 497 | D18: 32.2 | E18: 2.8 | F18: F1 | G18: 109.05 | H18: 90.16
A19: 2020-07-04 | B19: 4216 | C19: 522 | D19: 204.408 | E19: 2.8 | F19: F1 | G19: 31.34 | H19: 572.3424
A20: 2020-07-05 | B20: 4216 | C20: 451 | D20: 6.32 | E20: 2.8 | F20: F1 | G20: 43.31 | H20: 17.696
A21: 2020-07-05 | B21: 4216 | C21: 495 | D21: 345.19 | E21: 2.8 | F21: F1 | G21: 82.04 | H21: 966.532
A22: 2020-07-05 | B22: 4216 | C22: 497 | D22: 739.33 | E22: 2.8 | F22: F1 | G22: 109.05 | H22: 2070.124
A23: 2020-07-05 | B23: 4210 | C23: 507 | D23: 92.39 | E23: 2.8 | F23: F1 | G23: 23.79 | H23: 258.692
A24: 2020-07-06 | B24: 4336 | C24: 490 | D24: 612.3 | E24: 2.8 | F24: F2 | G24: 56.92 | H24: 1714.44
A25: 2020-07-06 | B25: 4216 | C25: 495 | D25: 244.47 | E25: 2.8 | F25: F1 | G25: 82.04 | H25: 684.516
A26: 2020-07-06 | B26: 4216 | C26: 497 | D26: 185.7 | E26: 2.8 | F26: F1 | G26: 109.05 | H26: 519.96
A27: 2020-07-06 | B27: 4216 | C27: 499 | D27: 11.92 | E27: 2.8 | F27: F1 | G27: 35.13 | H27: 33.376
A28: 2020-07-06 | B28: 4216 | C28: 502 | D28: 30.49 | E28: 2.8 | F28: F1 | G28: 130.13 | H28: 85.372
A29: 2020-07-06 | B29: 4210 | C29: 504 | D29: 49.98 | E29: 2.8 | F29: F1 | G29: 22.78 | H29: 139.944
A30: 2020-07-06 | B30: 4210 | C30: 506 | D30: 194.79 | E30: 2.8 | F30: F1 | G30: 49.75 | H30: 545.412
A31: 2020-07-06 | B31: 4210 | C31: 508 | D31: 154.01 | E31: 2.8 | F31: F1 | G31: 111.35 | H31: 431.228
A32: 2020-07-07 | B32: 4336 | C32: 490 | D32: 110 | E32: 2.8 | F32: F2 | G32: 56.92 | H32: 308
A33: 2020-07-06 | B33: 4216 | C33: 497 | D33: 78 | E33: 2.8 | F33: F1 | G33: 109.05 | H33: 218.4
A34: 2020-07-07 | B34: 4216 | C34: 499 | D34: 321 | E34: 2.8 | F34: F1 | G34: 35.13 | H34: =D34*E34 -> 898.8
A35: 2020-07-07 | B35: 4210 | C35: 504 | D35: 74.98 | E35: 2.8 | F35: F1 | G35: 22.78 | H35: 209.944
A36: 2020-07-07 | B36: 4210 | C36: 506 | D36: 303.5 | E36: 2.8 | F36: F1 | G36: 49.75 | H36: 849.8
A37: 2020-07-07 | B37: 4210 | C37: 508 | D37: 813.69 | E37: 2.8 | F37: F1 | G37: 111.35 | H37: 2278.332
A38: 2020-07-08 | B38: 4216 | C38: 499 | D38: 142.98 | E38: 2.8 | F38: F1 | G38: 35.13 | H38: 400.344
A39: 2020-07-08 | B39: 4216 | C39: 502 | D39: 92.57 | E39: 2.8 | F39: F1 | G39: 130.13 | H39: 259.196
A40: 2020-07-08 | B40: 4216 | C40: 498 | D40: 229.97 | E40: 2.8 | F40: F1 | G40: 34.72 | H40: 643.916
A41: 2020-07-08 | B41: 4210 | C41: 508 | D41: 844.67 | E41: 2.8 | F41: F1 | G41: 111.35 | H41: 2365.076
A42: 2020-07-08 | B42: 4210 | C42: 503 | D42: 52.67 | E42: 2.8 | F42: F1 | G42: 58.47 | H42: 147.476
A43: 2020-07-08 | B43: 4210 | C43: 504 | D43: 32.41 | E43: 2.8 | F43: F1 | G43: 22.78 | H43: 90.748
A44: 2020-07-08 | B44: 4216 | C44: 453 | D44: 92.15 | E44: 2.8 | F44: F1 | G44: 96.35 | H44: 258.02
A45: 2020-07-09 | B45: 4336 | C45: 490 | D45: 388.08 | E45: 2.8 | F45: F2 | G45: 56.92 | H45: 1086.624
A46: 2020-07-09 | B46: 4216 | C46: 497 | D46: 361.25 | E46: 2.8 | F46: F1 | G46: 109.05 | H46: 1011.5
A47: 2020-07-09 | B47: 4216 | C47: 499 | D47: 157.65 | E47: 2.8 | F47: F1 | G47: 35.13 | H47: 441.42
A48: 2020-07-09 | B48: 4210 | C48: 504 | D48: 32.7 | E48: 2.8 | F48: F1 | G48: 22.78 | H48: 91.56
A49: 2020-07-09 | B49: 4210 | C49: 508 | D49: 134.17 | E49: 2.8 | F49: F1 | G49: 111.35 | H49: 375.676
A50: 2020-07-09 | B50: 4216 | C50: 502 | D50: 134.23 | E50: 2.8 | F50: F1 | G50: 130.13 | H50: 375.844
A51: 2020-07-09 | B51: 4216 | C51: 498 | D51: 293.05 | E51: 2.8 | F51: F1 | G51: 34.72 | H51: 820.54
A52: 2020-07-09 | B52: 4210 | C52: 515 | D52: 46.35 | E52: 2.8 | F52: F1 | G52: 75.4 | H52: =D52*E52 -> 129.78 | J52: Copiar en la siguiente hoja por periodo (SUMA DE TONELAJE)
I54: FACTOR
I55: > = 55 | J55: Purpura
I56: 46-55 | J56: Rojo
I57: 31-45 | J57: Verde
I58: 17-30 | J58: Celeste

Sheet SUMA DE TONELAJE
A1: POLIGONO | B1: BANCO | C1: FASE | D1: CODIGO | E1: Stock Materiales TN | G1: FACTOR | H1: TOTAL TN | I1: M3 | J1: CODIGO PROMEDIO
A2: 4216 | B2: 495 | C2: F1 | D2: 82.04 | E2: 101.808 | G2: MUY ALTA | H2: =SUM(E2:E31) -> 25382.475 | I2: =H2/2.8 -> 9065.169643 | J2: =AVERAGE(D2:D31) -> 92.65733333
A3: 4216 | B3: 496 | C3: F1 | D3: 71.84 | E3: 29.904 | G3: BUENA | H3: =SUM(E32:E33) -> 1395.212 | I3: =H3/2.8 -> 498.29 | J3: =AVERAGE(D32:D33) -> 49.75
A4: 4216 | B4: 495 | C4: F1 | D4: 82.04 | E4: 4265.8 | G4: MEDIANA | H4: =SUM(E34:E45) -> 7637.7184 | I4: 2727.756571 | J4: =AVERAGE(D34:D45) -> 35.79666667
A5: 4216 | B5: 496 | C5: F1 | D5: 71.84 | E5: 277.2 | G5: BAJA | H5: =SUM(E46:E52) -> 1472.972 | I5: 526.0614286 | J5: =AVERAGE(D46:D52) -> 24.11
A6: 4216 | B6: 497 | C6: F1 | D6: 109.05 | E6: 138.292 | H6: =SUM(H2:H5) -> 35888.3774 | I6: =SUM(I2:I5) -> 12817.27764
A7: 4216 | B7: 495 | C7: F1 | D7: 82.04 | E7: 1898.4
A8: 4216 | B8: 496 | C8: F1 | D8: 71.84 | E8: 870.615 | G8: Los calculos de debe ser automaticas
A9: 4216 | B9: 497 | C9: F1 | D9: 109.05 | E9: 36.5
A10: 4216 | B10: 495 | C10: F1 | D10: 82.04 | E10: 1163.204
A11: 4216 | B11: 496 | C11: F1 | D11: 71.84 | E11: 1224.496
A12: 4216 | B12: 497 | C12: F1 | D12: 109.05 | E12: 90.16
A13: 4216 | B13: 495 | C13: F1 | D13: 82.04 | E13: 966.532
A14: 4216 | B14: 497 | C14: F1 | D14: 109.05 | E14: 2070.124
A15: 4336 | B15: 490 | C15: F2 | D15: 56.92 | E15: 1714.44 | G15: Aquí se debe ordenar por color y periodo fechas formar un pequeño cuadro para vincular a un documento a informar como el de arriba
A16: 4216 | B16: 495 | C16: F1 | D16: 82.04 | E16: 684.516 | G16: si es posible aquí no debe figurar los calculos solo numeros y nadie puede cambiar los resultados
A17: 4216 | B17: 497 | C17: F1 | D17: 109.05 | E17: 519.96 | G17: si esto se visualizara en formulario con sus respectivos colores
A18: 4216 | B18: 502 | C18: F1 | D18: 130.13 | E18: 85.372
A19: 4210 | B19: 508 | C19: F1 | D19: 111.35 | E19: 431.228
A20: 4336 | B20: 490 | C20: F2 | D20: 56.92 | E20: 308
A21: 4216 | B21: 497 | C21: F1 | D21: 109.05 | E21: 218.4
A22: 4210 | B22: 508 | C22: F1 | D22: 111.35 | E22: 2278.332
A23: 4216 | B23: 502 | C23: F1 | D23: 130.13 | E23: 259.196
A24: 4210 | B24: 508 | C24: F1 | D24: 111.35 | E24: 2365.076
A25: 4210 | B25: 503 | C25: F1 | D25: 58.47 | E25: 147.476
A26: 4216 | B26: 453 | C26: F1 | D26: 96.35 | E26: 258.02
A27: 4336 | B27: 490 | C27: F2 | D27: 56.92 | E27: 1086.624
A28: 4216 | B28: 497 | C28: F1 | D28: 109.05 | E28: 1011.5
A29: 4210 | B29: 508 | C29: F1 | D29: 111.35 | E29: 375.676
A30: 4216 | B30: 502 | C30: F1 | D30: 130.13 | E30: 375.844
A31: 4210 | B31: 515 | C31: F1 | D31: 75.4 | E31: 129.78
A32: 4210 | B32: 506 | C32: F1 | D32: 49.75 | E32: 545.412
A33: 4210 | B33: 506 | C33: F1 | D33: 49.75 | E33: 849.8
A34: 4336 | B34: 500 | C34: F3 | D34: 39.24 | E34: 2516.024
A35: 4336 | B35: 500 | C35: F3 | D35: 39.24 | E35: 344.26
A36: 4216 | B36: 499 | C36: F1 | D36: 35.13 | E36: 474.5
A37: 4216 | B37: 522 | C37: F1 | D37: 31.34 | E37: 474.5
A38: 4216 | B38: 522 | C38: F1 | D38: 31.34 | E38: 572.3424
A39: 4216 | B39: 451 | C39: F1 | D39: 43.31 | E39: 17.696
A40: 4216 | B40: 499 | C40: F1 | D40: 35.13 | E40: 33.376
A41: 4216 | B41: 499 | C41: F1 | D41: 35.13 | E41: 898.8
A42: 4216 | B42: 499 | C42: F1 | D42: 35.13 | E42: 400.344
A43: 4216 | B43: 498 | C43: F1 | D43: 34.72 | E43: 643.916
A44: 4216 | B44: 499 | C44: F1 | D44: 35.13 | E44: 441.42
A45: 4216 | B45: 498 | C45: F1 | D45: 34.72 | E45: 820.54
A46: 4336 | B46: 501 | C46: F3 | D46: 26.93 | E46: 353.584
A47: 4336 | B47: 501 | C47: F3 | D47: 26.93 | E47: 328.5
A48: 4210 | B48: 507 | C48: F1 | D48: 23.79 | E48: 258.692
A49: 4210 | B49: 504 | C49: F1 | D49: 22.78 | E49: 139.944
A50: 4210 | B50: 504 | C50: F1 | D50: 22.78 | E50: 209.944
A51: 4210 | B51: 504 | C51: F1 | D51: 22.78 | E51: 90.748
A52: 4210 | B52: 504 | C52: F1 | D52: 22.78 | E52: 91.56
A53: TOTAL | E53: =SUM(E2:E52) -> 35888.3774

Sheet DATOS
A1: RESPONSABLE | B1: BANCO | C1: POLIGONAL | D1: MATERIAL | E1: DENCIDAD | F1: FASE | G1: CODIGO
A2: FREDY CAYO | B2: 4222 | C2: 426 | D2: ARENA | E2: 1.62 | F2: F1 | G2: > = 55
B3: 4336 | C3: 427 | D3: DESMONTE | E3: 1.8 | F3: F2 | G3: 46-55
B4: 4210 | C4: 430 | E4: 1.9 | F4: F3 | G4: 31-45
C5: 441 | E5: 2.8 | G5: 17-30
C6: 446
C7: 447
C8: 448
C9: 449
C10: 450
C11: 451
C12: 452
C13: 454
C14: 455
C15: 460
C16: 461
C17: 462
C18: 485
C19: 486
C20: 451
C21: 452
C22: 453
C23: 490
C24: 491
C25: 492
C26: 493
C27: 495
C28: 496
C29: 497
C30: 498
C31: 499
C32: 502
C33: 503
C34: 504
C35: 505
C36: 506
C37: 507
C38: 508
C39: 509
C40: 510
C41: 511
C42: 512
C43: 513
C44: 514
C45: 515
C46: 516
C47: 517
C48: 518
C49: 519
C50: 520
C51: 521
C52: 522
C53: 523
C54: 524
C55: 525
C56: 495
C57: 496
C58: 494
C59: 495
C60: 496
C61: 497
C62: 494
C63: 495
C64: 496
C65: 497
C66: 499
C67: 522
C68: 495
C69: 496
C70: 497
C71: 522
C72: 451
C73: 495
C74: 497
C75: 507
C76: 490
C77: 495
C78: 497
C79: 499
C80: 502
C81: 504
C82: 506
C83: 508
C84: 490
C85: 497
C86: 499
C87: 504
C88: 506
C89: 508
C90: 499
C91: 502
C92: 498
C93: 508
C94: 503
C95: 504
C96: 453
C97: 490
C98: 497
C99: 499
C100: 504
C101: 508
C102: 502
C103: 498
C104: 515

Sheet DENS (hidden)
A1: Nivel | B1: Stope | C1: Dens Min
A2: 3420 | B2: 17 | C2: 3.34 | G2: OB17 | H2: 3.483333333
A3: 4218 | B3: 15 | C3: 3.34
A4: 3540 | B4: 22 | C4: 3.34
A5: 3420 | B5: 55 | C5: 3.47 | G5: OBA | H5: 3.228333333
A6: 4154 | B6: 87 | C6: 3.34 | G6: VT | H6: 3.226666667
A7: 3420 | B7: 101 | C7: 3.59 | G7: OB13 | H7: 3.697333333
A8: 3420 | B8: 102 | C8: 3.59 | G8: OB13R4 | H8: 3.543333333
A9: 3420 | B9: 103 | C9: 3.59 | G9: OBSB | H9: 3.344166667
A10: 3480 | B10: 195 | C10: 3.54 | G10: OB13B | H10: 4.070588235
A11: 3540 | B11: 366 | C11: 3.54
A12: 3600 | B12: 299 | C12: 3.23
A13: 3180 | B13: 327 | C13: 3.54 | G13: OBPRVS | H13: 3.5925
A14: 3180 | B14: Rpa 110S | C14: 3.54 | G14: VSG | H14: 3.548333333 | T14: 6000 | U14: 3.34 | V14: =+T14*U14 -> 20040
A15: 3180 | B15: 325 | C15: 3.54 | G15: OBCNE | H15: 3.548 | T15: 6000 | U15: 3.6 | V15: =+T15*U15 -> 21600
A16: 3180 | B16: 331 | C16: 3.33 | G16: VRP | H16: 2.8 | V16: =+V15-V14 -> 1560
A17: 3120 | B17: 406 | C17: 4.07 | G17: OBDF | H17: 3.473333333 | V17: =+T17*U17 -> 0
A18: 3060 | B18: 407 | C18: 4.07 | G18: OB13R6 | H18: 3.3265 | V18: =+T18*U18 -> 0
A19: 3420 | B19: Rpa. 7937 E | C19: 3.47 | G19: OB23 | H19: 3.5125 | T19: 10000 | U19: 3.55 | V19: =+T19*U19 -> 35500
A20: 3060 | B20: 438 | C20: 3.7 | G20: VI | H20: 3.158 | T20: 10000 | U20: 2.75 | V20: =+T20*U20 -> 27500
A21: 3120 | B21: 443 | C21: 3.7 | V21: =+V20-V19 -> -8000
A22: 3480 | B22: Gal 187N | C22: 3.7
A23: 3180 | B23: 444 | C23: 3.7
A24: 3000 | B24: OB13B_3000 | C24: 4.07
A25: 3120 | B25: 489 | C25: 4.07
A26: 3120 | B26: 658 | C26: 3.55
A27: 3180 | B27: 659 | C27: 3.55
A28: 4050 | B28: 695 | C28: 3.55
A29: 4050 | B29: 917 | C29: 3.43
A30: 4050 | B30: 617 | C30: 3.16
A31: 4154 | B31: 911 | C31: 3.16
A32: 4050 | B32: Gal. 498 N | C32: 3.55
A33: 3540 | B33: 996 | C33: 3.48
A34: 3420 | B34: OBC_3420 | C34: 3.48
A35: 3000 | B35: OB13BSK_3000 | C35: 4.07
A36: 3540 | B36: OB13_3540 | C36: 3.7
A37: 3420 | B37: OB15_3420 | C37: 3.43
A38: 3420 | B38: OBSB_3420 | C38: 3.34

Sheet DOMINIO (hidden)
A2: Atacocha | B2: DOM1 | C2: OB_13_R4
C3: OB_13_R6
C4: OB_13_R7
C5: OB_25
B6: DOM2 | C6: OB_13
C7: OB_13_B
C8: OB_13_BSKN
C9: OB_13_C
C10: OB_9
C11: V_P
C12: V_R_P
C13: V_PR
A14: Total Atacocha
A15: San gerardo | B15: DOM3 | C15: OB_10
C16: OB_12
C17: OB_15
C18: OB_17
C19: OB_18
C20: OB_23
C21: OB_AD
C22: OB_CR
C23: V_CH
C24: V_I
C25: V_INT
C26: V_K
C27: V_L
C28: V_LIND
C29: V_SG
C30: V_T
A31: Total San gerardo
A32: Santa_Barbara | B32: DOM4 | C32: OB_A
C33: OB_CNE
C34: OB_DF
C35: OB_M
C36: OB_PRVS
C37: OB_SB
C38: OB_SP
C39: OB_V
C40: OB_C
